[Event "Late-Titled-Tuesday-Blitz-October-17-2023"]
[Site "Chess.com"]
[Date "2023.10.17"]
[Round "7"]
[White "Flaccidmoves"]
[Black "adrivillu"]
[Result "1/2-1/2"]
[WhiteElo "2402"]
[BlackElo "2308"]
[TimeControl "180+1"]
[EndTime "15:16:14 PDT"]
[Termination "Game drawn by repetition"]

1. Nf3 {[%clk 0:03:00.9]} 1... e6 {[%clk 0:02:59.6]} 2. e4 {[%clk 0:02:59.6]}
2... d5 {[%clk 0:02:59.3]} 3. d3 {[%clk 0:02:59.8]} 3... Nf6 {[%clk 0:02:57.4]}
4. Nbd2 {[%clk 0:02:59.3]} 4... c5 {[%clk 0:02:57.2]} 5. g3 {[%clk 0:02:51.7]}
5... Nc6 {[%clk 0:02:57.1]} 6. Bg2 {[%clk 0:02:51.5]} 6... Be7 {[%clk 0:02:55]}
7. O-O {[%clk 0:02:51.1]} 7... O-O {[%clk 0:02:50.4]} 8. Re1 {[%clk 0:02:49.2]}
8... Qc7 {[%clk 0:02:47.4]} 9. e5 {[%clk 0:02:46.8]} 9... Nd7 {[%clk 0:02:46.9]}
10. Qe2 {[%clk 0:02:46.6]} 10... Nd4 {[%clk 0:02:43.7]} 11. Nxd4 {[%clk
0:02:44.6]} 11... cxd4 {[%clk 0:02:44.2]} 12. Nb3 {[%clk 0:02:38.9]} 12... Qb6
{[%clk 0:02:38.2]} 13. c3 {[%clk 0:02:35.3]} 13... dxc3 {[%clk 0:02:37.8]} 14.
bxc3 {[%clk 0:02:36.2]} 14... Nc5 {[%clk 0:02:35.1]} 15. Be3 {[%clk 0:02:34.5]}
15... Qc7 {[%clk 0:02:19.6]} 16. Nxc5 {[%clk 0:01:53.8]} 16... Bxc5 {[%clk
0:02:16.9]} 17. d4 {[%clk 0:01:50]} 17... Be7 {[%clk 0:02:15.4]} 18. Qd3 {[%clk
0:01:46.8]} 18... Bd7 {[%clk 0:02:11.9]} 19. Rab1 {[%clk 0:01:45]} 19... Rfc8
{[%clk 0:02:10.4]} 20. Bd2 {[%clk 0:01:43.8]} 20... a6 {[%clk 0:02:07.1]} 21. f4
{[%clk 0:01:42.2]} 21... Bb5 {[%clk 0:02:05.8]} 22. Qf3 {[%clk 0:01:37.7]} 22...
Qc4 {[%clk 0:02:03.9]} 23. a4 {[%clk 0:01:28.4]} 23... Qxa4 {[%clk 0:01:52.6]}
24. f5 {[%clk 0:01:27.2]} 24... Qc2 {[%clk 0:01:42.6]} 25. fxe6 {[%clk 0:01:22]}
25... fxe6 {[%clk 0:01:42.7]} 26. Qe3 {[%clk 0:01:16.3]} 26... h6 {[%clk
0:01:08.3]} 27. Bh3 {[%clk 0:01:15.9]} 27... Qg6 {[%clk 0:01:08.2]} 28. Ra1
{[%clk 0:01:03.3]} 28... Bg5 {[%clk 0:01:07.4]} 29. Qf2 {[%clk 0:00:59.2]} 29...
Rf8 {[%clk 0:01:05.6]} 30. Qg2 {[%clk 0:00:57.1]} 30... Bxd2 {[%clk 0:00:47.7]}
31. Qxd2 {[%clk 0:00:58]} 31... Rf7 {[%clk 0:00:47.4]} 32. Qd1 {[%clk
0:00:29.9]} 32... Raf8 {[%clk 0:00:44.3]} 33. Qg4 {[%clk 0:00:26.1]} 33... Qc2
{[%clk 0:00:20.2]} 34. Qxe6 {[%clk 0:00:23.3]} 34... Bd7 {[%clk 0:00:15.5]} 35.
Qxd7 {[%clk 0:00:18.3]} 35... Rxd7 {[%clk 0:00:15.4]} 36. Bxd7 {[%clk
0:00:19.2]} 36... Qf2+ {[%clk 0:00:14.4]} 37. Kh1 {[%clk 0:00:19.5]} 37... Qf3+
{[%clk 0:00:14.4]} 38. Kg1 {[%clk 0:00:19.8]} 38... Qxc3 {[%clk 0:00:14.5]} 39.
e6 {[%clk 0:00:17.7]} 39... Qxd4+ {[%clk 0:00:14.6]} 40. Kh1 {[%clk 0:00:18]}
40... Qf2 {[%clk 0:00:09.9]} 41. e7 {[%clk 0:00:16.9]} 41... Qf3+ {[%clk
0:00:09.4]} 42. Kg1 {[%clk 0:00:17.2]} 42... Qf2+ {[%clk 0:00:06.8]} 43. Kh1
{[%clk 0:00:17.1]} 43... Qf3+ {[%clk 0:00:06.9]} 44. Kg1 {[%clk 0:00:17.6]}
44... Qf2+ {[%clk 0:00:03.6]} 45. Kh1 {[%clk 0:00:17]} 1/2-1/2

[Event "Late-Titled-Tuesday-Blitz-October-17-2023"]
[Site "Chess.com"]
[Date "2023.10.17"]
[Round "7"]
[White "SCIM"]
[Black "cthulhuuu"]
[Result "0-1"]
[WhiteElo "2538"]
[BlackElo "2423"]
[TimeControl "180+1"]
[EndTime "15:16:17 PDT"]
[Termination "cthulhuuu won by resignation"]

1. e4 {[%clk 0:03:00.9]} 1... d6 {[%clk 0:03:00]} 2. d4 {[%clk 0:03:00.4]} 2...
Nf6 {[%clk 0:03:00.9]} 3. Nc3 {[%clk 0:03:01]} 3... c6 {[%clk 0:03:01.2]} 4. Be3
{[%clk 0:02:59.9]} 4... e5 {[%clk 0:03:01.4]} 5. f3 {[%clk 0:02:57]} 5... b5
{[%clk 0:03:00.9]} 6. a3 {[%clk 0:02:55.4]} 6... Be7 {[%clk 0:03:01.1]} 7. Nge2
{[%clk 0:02:48.4]} 7... O-O {[%clk 0:03:00.8]} 8. Qd2 {[%clk 0:02:47.4]} 8...
Nbd7 {[%clk 0:03:00.8]} 9. O-O-O {[%clk 0:02:44.5]} 9... Bb7 {[%clk 0:02:56.6]}
10. g4 {[%clk 0:02:40.4]} 10... a5 {[%clk 0:02:54.2]} 11. g5 {[%clk 0:02:40]}
11... Ne8 {[%clk 0:02:46.5]} 12. Ng3 {[%clk 0:02:33.8]} 12... b4 {[%clk
0:02:43.9]} 13. Na4 {[%clk 0:02:33.3]} 13... bxa3 {[%clk 0:02:39]} 14. b3 {[%clk
0:02:32.6]} 14... exd4 {[%clk 0:02:32]} 15. Bxd4 {[%clk 0:02:25.7]} 15... Bxg5
{[%clk 0:02:31.6]} 16. f4 {[%clk 0:02:24.5]} 16... Bf6 {[%clk 0:02:31.8]} 17.
Nf5 {[%clk 0:02:24.4]} 17... c5 {[%clk 0:02:28.1]} 18. e5 {[%clk 0:01:40.9]}
18... dxe5 {[%clk 0:02:28]} 19. fxe5 {[%clk 0:01:36]} 19... cxd4 {[%clk
0:01:19]} 20. exf6 {[%clk 0:01:28.9]} 20... Qxf6 {[%clk 0:01:16.1]} 21. Bd3
{[%clk 0:01:24.3]} 21... Bxh1 {[%clk 0:01:14.5]} 22. Rxh1 {[%clk 0:01:25.2]}
22... Ne5 {[%clk 0:01:14.9]} 23. Be4 {[%clk 0:01:21.9]} 23... Rd8 {[%clk
0:01:11.3]} 24. Rf1 {[%clk 0:01:12.7]} 24... d3 {[%clk 0:01:06.3]} 25. c3 {[%clk
0:01:11.1]} 25... h6 {[%clk 0:00:51.6]} 26. Kb1 {[%clk 0:00:56.1]} 26... Qg5
{[%clk 0:00:50.9]} 27. Qf2 {[%clk 0:00:52.1]} 27... d2 {[%clk 0:00:49]} 28. Bc2
{[%clk 0:00:52.7]} 28... Nd6 {[%clk 0:00:42.4]} 29. Nd4 {[%clk 0:00:47.2]} 29...
Ng4 {[%clk 0:00:33]} 30. Qg3 {[%clk 0:00:37.4]} 30... Ne3 {[%clk 0:00:32.9]} 31.
Qxg5 {[%clk 0:00:33.7]} 31... hxg5 {[%clk 0:00:33.8]} 32. Rg1 {[%clk 0:00:33.4]}
32... Rfe8 {[%clk 0:00:26.7]} 33. Rxg5 {[%clk 0:00:25.7]} 33... Nxc2 {[%clk
0:00:26.1]} 34. Kxc2 {[%clk 0:00:22]} 34... a2 {[%clk 0:00:26.8]} 35. Rg1 {[%clk
0:00:18.8]} 35... Nb5 {[%clk 0:00:22.4]} 36. Rd1 {[%clk 0:00:13.8]} 36... Nxd4+
{[%clk 0:00:22.8]} 37. cxd4 {[%clk 0:00:13.4]} 37... Rxd4 {[%clk 0:00:23.2]} 38.
Nc3 {[%clk 0:00:12.3]} 38... Rc8 {[%clk 0:00:23.4]} 39. Kb2 {[%clk 0:00:11.6]}
39... a1=Q+ {[%clk 0:00:21.9]} 40. Rxa1 {[%clk 0:00:09.5]} 40... Rxc3 {[%clk
0:00:22.3]} 41. Kxc3 {[%clk 0:00:08.9]} 41... d1=Q {[%clk 0:00:22.7]} 0-1

[Event "Late-Titled-Tuesday-Blitz-October-17-2023"]
[Site "Chess.com"]
[Date "2023.10.17"]
[Round "7"]
[White "ameetghasi100"]
[Black "borocotoajua"]
[Result "1-0"]
[WhiteElo "2795"]
[BlackElo "2573"]
[TimeControl "180+1"]
[EndTime "15:16:18 PDT"]
[Termination "ameetghasi100 won on time"]

1. c4 {[%clk 0:03:00.9]} 1... Nf6 {[%clk 0:02:57.7]} 2. e3 {[%clk 0:03:01.8]}
2... g6 {[%clk 0:02:57.3]} 3. Nf3 {[%clk 0:03:02.2]} 3... Bg7 {[%clk 0:02:57.3]}
4. Nc3 {[%clk 0:03:02.4]} 4... O-O {[%clk 0:02:56.8]} 5. d4 {[%clk 0:03:03]}
5... d6 {[%clk 0:02:52.1]} 6. Be2 {[%clk 0:03:02.9]} 6... Bf5 {[%clk 0:02:47.5]}
7. O-O {[%clk 0:03:02.3]} 7... Re8 {[%clk 0:02:42.6]} 8. b3 {[%clk 0:02:54.5]}
8... c6 {[%clk 0:02:39.2]} 9. Bb2 {[%clk 0:02:54.6]} 9... Qa5 {[%clk 0:02:31.5]}
10. a3 {[%clk 0:02:54.3]} 10... e5 {[%clk 0:02:26.7]} 11. b4 {[%clk 0:02:54.3]}
11... Qc7 {[%clk 0:02:26.4]} 12. Rc1 {[%clk 0:02:53.5]} 12... e4 {[%clk
0:02:25.4]} 13. Nd2 {[%clk 0:02:53.4]} 13... h5 {[%clk 0:02:24.8]} 14. Qb3
{[%clk 0:02:47.6]} 14... Nbd7 {[%clk 0:02:22.3]} 15. d5 {[%clk 0:02:43.2]} 15...
c5 {[%clk 0:02:13.7]} 16. a4 {[%clk 0:02:31.6]} 16... cxb4 {[%clk 0:01:58.6]}
17. Qxb4 {[%clk 0:02:32.5]} 17... Nc5 {[%clk 0:01:59.3]} 18. Nb5 {[%clk
0:02:31.9]} 18... Qe7 {[%clk 0:02:00]} 19. Nd4 {[%clk 0:02:26.7]} 19... Bg4
{[%clk 0:02:00.3]} 20. Rc2 {[%clk 0:02:00.4]} 20... Rac8 {[%clk 0:01:50.8]} 21.
Ba1 {[%clk 0:01:51.4]} 21... Qd7 {[%clk 0:01:05.1]} 22. a5 {[%clk 0:01:35.5]}
22... Qe7 {[%clk 0:00:59.9]} 23. h3 {[%clk 0:01:25.1]} 23... Bd7 {[%clk
0:00:48]} 24. Nb5 {[%clk 0:01:05.2]} 24... a6 {[%clk 0:00:46]} 25. Nd4 {[%clk
0:01:01.1]} 25... g5 {[%clk 0:00:46.1]} 26. N4b3 {[%clk 0:00:54.4]} 26... Nd3
{[%clk 0:00:40.3]} 27. Qa3 {[%clk 0:00:48.6]} 27... g4 {[%clk 0:00:36.9]} 28. h4
{[%clk 0:00:46.5]} 28... g3 {[%clk 0:00:36.5]} 29. fxg3 {[%clk 0:00:46.4]} 29...
Ng4 {[%clk 0:00:36]} 30. Bxg4 {[%clk 0:00:44]} 30... Bxg4 {[%clk 0:00:33]} 31.
Bxg7 {[%clk 0:00:43.8]} 31... Kxg7 {[%clk 0:00:33.9]} 32. Qa1+ {[%clk
0:00:43.4]} 32... Kh7 {[%clk 0:00:30.2]} 33. Qf6 {[%clk 0:00:39.2]} 33... Qxf6
{[%clk 0:00:23.2]} 34. Rxf6 {[%clk 0:00:40.1]} 34... Kg7 {[%clk 0:00:24.1]} 35.
Rxd6 {[%clk 0:00:39.8]} 35... Re5 {[%clk 0:00:14.9]} 36. Nd4 {[%clk 0:00:32.5]}
36... Nb4 {[%clk 0:00:15.1]} 37. Rb2 {[%clk 0:00:31.4]} 37... Nd3 {[%clk
0:00:11]} 38. Rxb7 {[%clk 0:00:31.5]} 38... Nc5 {[%clk 0:00:06.4]} 39. Rbb6
{[%clk 0:00:28.1]} 39... Nd7 {[%clk 0:00:05.2]} 40. Rxa6 {[%clk 0:00:27]} 40...
Rb8 {[%clk 0:00:02.4]} 41. Nb5 {[%clk 0:00:21.7]} 41... Nc5 {[%clk 0:00:02.2]}
42. Rac6 {[%clk 0:00:20.6]} 1-0

[Event "Late-Titled-Tuesday-Blitz-October-17-2023"]
[Site "Chess.com"]
[Date "2023.10.17"]
[Round "7"]
[White "rdarruda"]
[Black "The_Princess_Moon"]
[Result "0-1"]
[WhiteElo "2451"]
[BlackElo "2347"]
[TimeControl "180+1"]
[EndTime "15:16:18 PDT"]
[Termination "The_Princess_Moon won by resignation"]

1. d4 {[%clk 0:02:30.5]} 1... c5 {[%clk 0:02:58.8]} 2. d5 {[%clk 0:02:29.9]}
2... d6 {[%clk 0:02:56.6]} 3. Nc3 {[%clk 0:02:29.9]} 3... Nf6 {[%clk 0:02:56.9]}
4. g3 {[%clk 0:02:29.7]} 4... e5 {[%clk 0:02:57.4]} 5. dxe6 {[%clk 0:02:29]}
5... fxe6 {[%clk 0:02:56.3]} 6. Bg2 {[%clk 0:02:25.7]} 6... Be7 {[%clk
0:02:55.8]} 7. e4 {[%clk 0:02:24.8]} 7... Nc6 {[%clk 0:02:52.1]} 8. Nge2 {[%clk
0:02:24.6]} 8... O-O {[%clk 0:02:49.5]} 9. O-O {[%clk 0:02:24.2]} 9... e5 {[%clk
0:02:45.9]} 10. Nd5 {[%clk 0:02:20.8]} 10... Be6 {[%clk 0:02:44]} 11. Nec3
{[%clk 0:02:18.2]} 11... Nd4 {[%clk 0:02:39.7]} 12. Nxe7+ {[%clk 0:02:16.9]}
12... Qxe7 {[%clk 0:02:33.3]} 13. Nd5 {[%clk 0:02:13.3]} 13... Nxd5 {[%clk
0:02:29.6]} 14. exd5 {[%clk 0:02:14.2]} 14... Bd7 {[%clk 0:02:21.3]} 15. c3
{[%clk 0:02:13.7]} 15... Nb5 {[%clk 0:02:09.6]} 16. Be3 {[%clk 0:02:04]} 16...
Nc7 {[%clk 0:02:00.5]} 17. Qd2 {[%clk 0:02:02.9]} 17... Kh8 {[%clk 0:01:55.8]}
18. f4 {[%clk 0:02:02.8]} 18... e4 {[%clk 0:01:52.8]} 19. Kh1 {[%clk 0:01:53.7]}
19... Rae8 {[%clk 0:01:51.6]} 20. Rae1 {[%clk 0:01:52.6]} 20... Qf7 {[%clk
0:01:47.8]} 21. c4 {[%clk 0:01:51]} 21... b5 {[%clk 0:01:47.5]} 22. b3 {[%clk
0:01:45.4]} 22... Re7 {[%clk 0:01:38.7]} 23. Qa5 {[%clk 0:01:42.8]} 23... Bg4
{[%clk 0:01:33.4]} 24. Bd2 {[%clk 0:01:30.7]} 24... Rfe8 {[%clk 0:01:21.2]} 25.
f5 {[%clk 0:01:20.2]} 25... e3 {[%clk 0:01:13.7]} 26. Bc3 {[%clk 0:01:16.8]}
26... b4 {[%clk 0:01:13]} 27. Bb2 {[%clk 0:01:11.8]} 27... e2 {[%clk 0:00:57.4]}
28. Rf4 {[%clk 0:01:11.2]} 28... Qh5 {[%clk 0:00:30.7]} 29. f6 {[%clk 0:01:07]}
29... Rf7 {[%clk 0:00:27.1]} 30. fxg7+ {[%clk 0:01:05.9]} 30... Kg8 {[%clk
0:00:26.6]} 31. Rxf7 {[%clk 0:00:52.5]} 31... Qxf7 {[%clk 0:00:27.5]} 32. Kg1
{[%clk 0:00:52.3]} 32... Na8 {[%clk 0:00:16]} 33. h3 {[%clk 0:00:48.4]} 33...
Bh5 {[%clk 0:00:14.4]} 34. g4 {[%clk 0:00:41.6]} 34... Bg6 {[%clk 0:00:12.3]}
35. Qb5 {[%clk 0:00:33.3]} 35... Nc7 {[%clk 0:00:10.3]} 36. Qc6 {[%clk
0:00:31.8]} 36... Qf4 {[%clk 0:00:09.9]} 37. Qxc7 {[%clk 0:00:29.3]} 37... Qe3+
{[%clk 0:00:06]} 38. Kh1 {[%clk 0:00:29.3]} 38... Qd2 {[%clk 0:00:05.1]} 39.
Qxd6 {[%clk 0:00:12.9]} 39... Qxe1+ {[%clk 0:00:04.5]} 40. Kh2 {[%clk
0:00:13.8]} 40... Qf2 {[%clk 0:00:04.1]} 41. Qf6 {[%clk 0:00:11.5]} 41... Qxf6
{[%clk 0:00:03.9]} 42. Bxf6 {[%clk 0:00:11]} 42... e1=Q {[%clk 0:00:04.8]} 0-1

[Event "Late-Titled-Tuesday-Blitz-October-17-2023"]
[Site "Chess.com"]
[Date "2023.10.17"]
[Round "7"]
[White "PawnEatingZombie"]
[Black "C_K_G"]
[Result "1-0"]
[WhiteElo "2282"]
[BlackElo "1890"]
[TimeControl "180+1"]
[EndTime "15:16:18 PDT"]
[Termination "PawnEatingZombie won by resignation"]

1. e4 {[%clk 0:02:57.4]} 1... c5 {[%clk 0:02:59.7]} 2. c3 {[%clk 0:02:56.2]}
2... d6 {[%clk 0:03:00.2]} 3. d4 {[%clk 0:02:55]} 3... cxd4 {[%clk 0:03:00.5]}
4. cxd4 {[%clk 0:02:55]} 4... Nf6 {[%clk 0:03:01]} 5. Nc3 {[%clk 0:02:54.5]}
5... g6 {[%clk 0:03:00.9]} 6. f4 {[%clk 0:02:44.4]} 6... Bg7 {[%clk 0:03:00.1]}
7. Nf3 {[%clk 0:02:44.1]} 7... a6 {[%clk 0:02:59.6]} 8. e5 {[%clk 0:02:40.3]}
8... Ng4 {[%clk 0:02:53.1]} 9. h3 {[%clk 0:02:37]} 9... Nh6 {[%clk 0:02:52.7]}
10. Bc4 {[%clk 0:02:23.9]} 10... O-O {[%clk 0:02:42]} 11. O-O {[%clk 0:02:23.7]}
11... e6 {[%clk 0:02:37.4]} 12. d5 {[%clk 0:01:59.8]} 12... Qc7 {[%clk
0:02:12.7]} 13. Bb3 {[%clk 0:01:55.3]} 13... dxe5 {[%clk 0:02:08]} 14. fxe5
{[%clk 0:01:48.8]} 14... exd5 {[%clk 0:02:01.6]} 15. Nxd5 {[%clk 0:01:43.9]}
15... Qd8 {[%clk 0:01:31.4]} 16. Bg5 {[%clk 0:01:34.3]} 16... Qa5 {[%clk
0:01:18.9]} 17. Be7 {[%clk 0:00:46.4]} 17... Re8 {[%clk 0:00:52.9]} 18. Nf6+
{[%clk 0:00:45.8]} 18... Bxf6 {[%clk 0:00:47.7]} 19. Bxf6 {[%clk 0:00:41.9]}
19... Nd7 {[%clk 0:00:36.5]} 20. Qc1 {[%clk 0:00:38]} 20... Qc5+ {[%clk
0:00:24.2]} 21. Qxc5 {[%clk 0:00:36.8]} 21... Nxc5 {[%clk 0:00:24.2]} 22. Bd5
{[%clk 0:00:32.8]} 22... Nf5 {[%clk 0:00:20.3]} 23. Rfe1 {[%clk 0:00:22.1]}
23... Nd7 {[%clk 0:00:18]} 24. g4 {[%clk 0:00:19.6]} 24... Nxf6 {[%clk
0:00:16.8]} 25. exf6 {[%clk 0:00:18.8]} 25... Nd6 {[%clk 0:00:14]} 26. Rxe8+
{[%clk 0:00:16.5]} 26... Nxe8 {[%clk 0:00:14.9]} 27. Ne5 {[%clk 0:00:07.6]}
27... Nxf6 {[%clk 0:00:13.4]} 28. Bxf7+ {[%clk 0:00:08.2]} 28... Kg7 {[%clk
0:00:13.6]} 29. Rf1 {[%clk 0:00:04.1]} 29... Bd7 {[%clk 0:00:12.4]} 30. g5
{[%clk 0:00:03.3]} 30... Ne4 {[%clk 0:00:10.3]} 31. Bd5 {[%clk 0:00:03]} 31...
Bc6 {[%clk 0:00:09.8]} 32. Nxc6 {[%clk 0:00:02.6]} 32... bxc6 {[%clk 0:00:10]}
33. Bxe4 {[%clk 0:00:02.9]} 33... Rb8 {[%clk 0:00:10.6]} 34. Bc2 {[%clk
0:00:02.8]} 34... Rxb2 {[%clk 0:00:10.2]} 35. Rf2 {[%clk 0:00:03.7]} 35... h6
{[%clk 0:00:09.9]} 36. Kg2 {[%clk 0:00:04.1]} 36... hxg5 {[%clk 0:00:10.1]} 37.
Bd3 {[%clk 0:00:04.2]} 37... c5 {[%clk 0:00:10.5]} 38. Rxb2 {[%clk 0:00:04]}
38... a5 {[%clk 0:00:11.2]} 39. Rc2 {[%clk 0:00:04.5]} 39... Kh6 {[%clk
0:00:11.8]} 40. Rxc5 {[%clk 0:00:05]} 1-0

[Event "Late-Titled-Tuesday-Blitz-October-17-2023"]
[Site "Chess.com"]
[Date "2023.10.17"]
[Round "7"]
[White "maurovargas01"]
[Black "ToddBryant"]
[Result "0-1"]
[WhiteElo "1906"]
[BlackElo "2312"]
[TimeControl "180+1"]
[EndTime "15:16:31 PDT"]
[Termination "ToddBryant won on time"]

1. e4 {[%clk 0:02:18.6]} 1... c5 {[%clk 0:02:58.1]} 2. Nc3 {[%clk 0:02:18.4]}
2... d6 {[%clk 0:02:58.3]} 3. f4 {[%clk 0:02:19.3]} 3... g6 {[%clk 0:02:58.2]}
4. Nf3 {[%clk 0:02:20.2]} 4... Bg7 {[%clk 0:02:58.7]} 5. Bb5+ {[%clk 0:02:20.7]}
5... Bd7 {[%clk 0:02:59.1]} 6. Bxd7+ {[%clk 0:02:21.1]} 6... Qxd7 {[%clk
0:02:59.2]} 7. d3 {[%clk 0:02:22]} 7... Nc6 {[%clk 0:02:58.9]} 8. O-O {[%clk
0:02:22.9]} 8... Nd4 {[%clk 0:02:59.2]} 9. Ne2 {[%clk 0:02:21.2]} 9... e6 {[%clk
0:02:55.1]} 10. c3 {[%clk 0:02:21.3]} 10... Nxe2+ {[%clk 0:02:54.3]} 11. Qxe2
{[%clk 0:02:20.3]} 11... Ne7 {[%clk 0:02:55.2]} 12. Rb1 {[%clk 0:02:11.3]} 12...
d5 {[%clk 0:02:51.4]} 13. e5 {[%clk 0:02:10.8]} 13... h5 {[%clk 0:02:51.3]} 14.
Ng5 {[%clk 0:02:05.5]} 14... Nf5 {[%clk 0:02:51.1]} 15. Bd2 {[%clk 0:01:55.4]}
15... Bh6 {[%clk 0:02:42.9]} 16. a3 {[%clk 0:01:50.9]} 16... Bxg5 {[%clk
0:02:40.8]} 17. fxg5 {[%clk 0:01:50.2]} 17... O-O {[%clk 0:02:41.1]} 18. g4
{[%clk 0:01:47.5]} 18... hxg4 {[%clk 0:02:32]} 19. Qxg4 {[%clk 0:01:45.1]} 19...
Qc7 {[%clk 0:02:30.9]} 20. Bf4 {[%clk 0:01:43.7]} 20... Kg7 {[%clk 0:02:12.4]}
21. Rf3 {[%clk 0:01:42.6]} 21... Rh8 {[%clk 0:02:12.2]} 22. Rbf1 {[%clk
0:01:21.4]} 22... Rh5 {[%clk 0:02:05]} 23. Bg3 {[%clk 0:01:17.3]} 23... Rah8
{[%clk 0:02:01.9]} 24. Bf4 {[%clk 0:00:58.8]} 24... Qb6 {[%clk 0:01:47.1]} 25.
R3f2 {[%clk 0:00:53.1]} 25... Rh4 {[%clk 0:01:34.6]} 26. Qe2 {[%clk 0:00:51.4]}
26... Qb3 {[%clk 0:01:22.7]} 27. Qc2 {[%clk 0:00:46.9]} 27... Rg4+ {[%clk
0:01:16.2]} 28. Kh1 {[%clk 0:00:33.5]} 28... Qb6 {[%clk 0:01:01.6]} 29. Rg2
{[%clk 0:00:26.6]} 29... Rgh4 {[%clk 0:00:53.1]} 30. Qe2 {[%clk 0:00:24.4]}
30... d4 {[%clk 0:00:46.9]} 31. cxd4 {[%clk 0:00:20.5]} 31... cxd4 {[%clk
0:00:43.7]} 32. Rc1 {[%clk 0:00:19.4]} 32... Rxf4 {[%clk 0:00:41.1]} 33. Qd2
{[%clk 0:00:17.6]} 33... Ne3 {[%clk 0:00:39.6]} 34. Rgg1 {[%clk 0:00:14.7]}
34... Qb5 {[%clk 0:00:34.1]} 35. b4 {[%clk 0:00:12.7]} 35... Qd5+ {[%clk
0:00:34.4]} 36. Rg2 {[%clk 0:00:10.6]} 36... Rfh4 {[%clk 0:00:27.2]} 37. Kg1
{[%clk 0:00:09.6]} 37... Qxg2+ {[%clk 0:00:27.3]} 38. Qxg2 {[%clk 0:00:09.5]}
38... Nxg2 {[%clk 0:00:28.2]} 39. Kxg2 {[%clk 0:00:09.8]} 39... Rxh2+ {[%clk
0:00:28.9]} 40. Kg3 {[%clk 0:00:10]} 40... R8h3+ {[%clk 0:00:27.2]} 41. Kg4
{[%clk 0:00:08.2]} 41... Rxd3 {[%clk 0:00:24.4]} 42. Rc4 {[%clk 0:00:09.1]}
42... Re2 {[%clk 0:00:22.6]} 43. Kf4 {[%clk 0:00:07.9]} 43... Ree3 {[%clk
0:00:16.3]} 44. Rc7 {[%clk 0:00:06]} 44... Rxa3 {[%clk 0:00:13]} 0-1

[Event "Late-Titled-Tuesday-Blitz-October-17-2023"]
[Site "Chess.com"]
[Date "2023.10.17"]
[Round "7"]
[White "talaicito"]
[Black "GiorgianBarbosa"]
[Result "1-0"]
[WhiteElo "2239"]
[BlackElo "2364"]
[TimeControl "180+1"]
[EndTime "15:16:33 PDT"]
[Termination "talaicito won by checkmate"]

1. d4 {[%clk 0:03:00.9]} 1... Nf6 {[%clk 0:02:45.3]} 2. Nc3 {[%clk 0:03:01.2]}
2... c5 {[%clk 0:02:43.8]} 3. d5 {[%clk 0:03:01.1]} 3... d6 {[%clk 0:02:42.8]}
4. e4 {[%clk 0:03:00.2]} 4... g6 {[%clk 0:02:42]} 5. Be2 {[%clk 0:02:59.6]} 5...
Bg7 {[%clk 0:02:42.9]} 6. Nf3 {[%clk 0:02:59.9]} 6... O-O {[%clk 0:02:43.8]} 7.
Nd2 {[%clk 0:03:00.2]} 7... e6 {[%clk 0:02:44.7]} 8. O-O {[%clk 0:02:57.2]} 8...
exd5 {[%clk 0:02:43.2]} 9. exd5 {[%clk 0:02:57.1]} 9... Na6 {[%clk 0:02:41.9]}
10. Nc4 {[%clk 0:02:55]} 10... Nc7 {[%clk 0:02:41.4]} 11. a4 {[%clk 0:02:53.7]}
11... b6 {[%clk 0:02:38.6]} 12. Bf4 {[%clk 0:02:37.7]} 12... Nce8 {[%clk
0:02:32.7]} 13. Re1 {[%clk 0:02:28.5]} 13... h5 {[%clk 0:02:23.3]} 14. Nb5
{[%clk 0:02:22.9]} 14... Ne4 {[%clk 0:01:58.6]} 15. Bf3 {[%clk 0:02:19.6]} 15...
Qf6 {[%clk 0:01:45.9]} 16. Rxe4 {[%clk 0:02:12.2]} 16... Bf5 {[%clk 0:01:46]}
17. Re1 {[%clk 0:02:04.9]} 17... Bxc2 {[%clk 0:01:13]} 18. Qd2 {[%clk
0:02:01.9]} 18... Bb3 {[%clk 0:01:04.4]} 19. Bg5 {[%clk 0:01:54.1]} 19... Qf5
{[%clk 0:00:59.2]} 20. Ncxd6 {[%clk 0:01:30.9]} 20... Nxd6 {[%clk 0:01:00.1]}
21. Nxd6 {[%clk 0:01:30.9]} 21... Qd7 {[%clk 0:00:56.6]} 22. Be7 {[%clk
0:01:24.7]} 22... Rfb8 {[%clk 0:00:50.6]} 23. Ra3 {[%clk 0:01:15.2]} 23... Bxa4
{[%clk 0:00:45]} 24. Qf4 {[%clk 0:01:14.7]} 24... f5 {[%clk 0:00:34.8]} 25. Qxa4
{[%clk 0:01:12.1]} 25... Qxa4 {[%clk 0:00:30.3]} 26. Rxa4 {[%clk 0:01:12]} 26...
Bxb2 {[%clk 0:00:31.2]} 27. Re6 {[%clk 0:01:00.4]} 27... Kh7 {[%clk 0:00:26.2]}
28. Nf7 {[%clk 0:00:51.8]} 28... b5 {[%clk 0:00:25.8]} 29. Ra2 {[%clk
0:00:51.6]} 29... Bg7 {[%clk 0:00:25]} 30. d6 {[%clk 0:00:51.9]} 30... b4 {[%clk
0:00:20.7]} 31. Bxa8 {[%clk 0:00:43.6]} 31... b3 {[%clk 0:00:20]} 32. Ng5+
{[%clk 0:00:41]} 32... Kh6 {[%clk 0:00:19.2]} 33. Bd5 {[%clk 0:00:38.9]} 33...
b2 {[%clk 0:00:12]} 34. Nf7+ {[%clk 0:00:32]} 34... Kh7 {[%clk 0:00:11.5]} 35.
Rxb2 {[%clk 0:00:29.2]} 35... Rxb2 {[%clk 0:00:11.8]} 36. h4 {[%clk 0:00:29.2]}
36... Rd2 {[%clk 0:00:08]} 37. Bc4 {[%clk 0:00:25.4]} 37... a5 {[%clk
0:00:06.2]} 38. Re2 {[%clk 0:00:22.3]} 38... Rd1+ {[%clk 0:00:05.7]} 39. Kh2
{[%clk 0:00:21.9]} 39... a4 {[%clk 0:00:06.6]} 40. Ra2 {[%clk 0:00:21.8]} 40...
Kg8 {[%clk 0:00:04.1]} 41. Ng5+ {[%clk 0:00:20.9]} 41... Kh8 {[%clk 0:00:04.6]}
42. Rxa4 {[%clk 0:00:21.4]} 42... Be5+ {[%clk 0:00:05.1]} 43. g3 {[%clk
0:00:21]} 43... f4 {[%clk 0:00:05.5]} 44. Ra8+ {[%clk 0:00:20.5]} 44... Kg7
{[%clk 0:00:04.1]} 45. Ne6+ {[%clk 0:00:18.5]} 45... Kf7 {[%clk 0:00:03.7]} 46.
Nxf4+ {[%clk 0:00:19.4]} 46... Kg7 {[%clk 0:00:03.4]} 47. Bf8+ {[%clk 0:00:19]}
47... Kh7 {[%clk 0:00:03.1]} 48. Ra7+ {[%clk 0:00:19]} 48... Kh8 {[%clk
0:00:02]} 49. Nxg6# {[%clk 0:00:19.2]} 1-0